{"text_format":"1","workbook":"xlsx","n_sheets":16,"sheets":["Identifikace","Anotace","Cíle a výstupy","Řešitelský tým","Indikátory, udržitelnost a ZZ","Rozpočet 1 opt. rozpis","Rozpočet 1 opt. zdůvodnění","Rozpočet 2 min. rozpis","Rozpočet 2 min. zdůvodnění","Čerpání rozpočtu pro ZZ","Přehled nákupu pro ZZ","Form. č. 4 Hodnocení přihlášky","Form. č. 5 Hodnocení ZZ","Form. č. 6 Změna projektu","Form. č. 7 Kontrola čerpání","Data_RS_admin"],"not_rendered":{"charts":0,"images":1,"macros":1,"external_links":0,"defined_names":0,"comments":5,"pivot_tables":0},"unopened":[],"bounds":{"document_bytes":16777216,"sheet_cells":100000,"rows_first":2000,"rows_last":500,"rows_between":2000,"halvings":0,"cell_chars":16384,"cell_head_chars":4096},"cells_cut":0,"cells_raw":0,"read":"whole","date_system":"1900"}

{"sheet":"Identifikace","index":0,"n_rows":26,"n_cols":5,"rows_kept":26,"cut":false,"hidden":false,"merged":[[0,4,1,4],[5,2,5,3],[1,1,1,3],[0,0,0,3],[2,1,2,7],[22,1,22,7],[23,1,23,8],[24,1,24,8],[8,2,8,7],[3,2,3,3],[4,2,4,3],[6,2,6,3]]}
["Projekt IP 2021 - Nová vnitřní soutěž v rámci IP ČVUT 2021"]
[null,"Formulář č. 3 - Identifikace"]
[null,"(u vybraných textových položek jsou k dispozici rozevírací seznamy pro výběr položek, položky řešitel, název projektu, číslo EZOP a číslo iFIS se automaticky kopíruje do dalších listů, položky rozpočtu se vyplňují na základě listu Rozpočet 1 opt. rozpis a dalších, je tedy třeba nejprve vyplnit tyto)"]
[null,"Projektový cíl:"]
[null,"Tematický okruh:"]
[null,"Dílčí aktivita:",null,null,"Katedra"]
[null,"Řešitel:"]
[]
[null,"Název projektu"]
[null,null,"Od:","Do: "]
[null,"Období řešení:","2021-01-01","2021-12-31"]
[]
[null,null,"Celkem:","V tom INV (KP):","V tom NEI (BP):"]
[null,"Požadované prostředky          (tis. Kč):",{"$f":"SUM(D14:E14)","v":0},{"$f":" 'Rozpočet 1 opt. rozpis'!D8","v":0},{"$f":" 'Rozpočet 1 opt. rozpis'!D14+'Rozpočet 1 opt. rozpis'!D20","v":0}]
[null,"Přidělené prostředky MŠMT (tis.Kč):",{"$f":"SUM(D15:E15)","v":0},{"$f":" 'Rozpočet 1 opt. rozpis'!E8","v":0},{"$f":" 'Rozpočet 1 opt. rozpis'!E14+'Rozpočet 1 opt. rozpis'!E20","v":0}]
[null,"Navýšení / snížení                   (tis. Kč):",{"$f":"SUM(D16:E16)","v":0},0,0]
[null,"Čerpání     (tis.Kč):",{"$f":"SUM(D17:E17)","v":0},{"$f":" 'Čerpání rozpočtu pro ZZ'!F8","v":0},{"$f":" 'Čerpání rozpočtu pro ZZ'!F14+'Čerpání rozpočtu pro ZZ'!F20","v":0}]
[null,"Spoluúčast katedry mimo IP (tis. Kč)",{"$f":"SUM(D18:E18)","v":0},0,{"$f":" 'Rozpočet 1 opt. rozpis'!F14+'Rozpočet 1 opt. rozpis'!F20","v":0}]
[null,"Číslo EZOP:"]
[null,"Číslo iFIS:"]
[]
[null,"Prohlášení:"]
[null,"Projekt je v souladu s uvedenými prioritními cíli uvedenými v této výzvě a s projektem souhlasí garanti následujících předmětů: \n"]
[null,"17PBBXXX Název v češtině/17ABBXXX Název v angličtině doc. Ing. Jméno Příjmení, Ph.D. (viz přiložené potvrzení - nepovinné, souhlas bude ověřován)"]
[null,"17AMBYYY Název v angličtině                                           doc. Ing. Jméno Příjmení, Ph.D. (viz přiložené potvrzení - nepovinné, souhlas bude ověřován)"]
[null,"…atd."]

{"sheet":"Anotace","index":1,"n_rows":6,"n_cols":2,"rows_kept":6,"cut":false,"hidden":false,"merged":[[4,2,4,7],[5,2,5,7]]}
[null,"Projekt IP 2021"]
[null,"Formulář č. 3 - Anotace projektu"]
[]
[]
[null,"Anotace (stručný popis):"]
[null,"Cílová skupina:"]

{"sheet":"Cíle a výstupy","index":2,"n_rows":80,"n_cols":8,"rows_kept":80,"cut":false,"hidden":false,"merged":[[40,3,40,5],[22,3,23,5],[22,6,23,6],[22,1,23,1],[24,3,24,5],[25,3,25,5],[26,3,26,5],[27,3,27,5],[38,3,38,5],[39,3,39,5],[34,3,34,5],[28,3,28,5],[4,7,5,7],[22,2,23,2],[22,7,23,7],[4,2,5,2],[10,3,10,6],[21,3,21,6],[18,3,18,6],[19,3,19,6],[20,3,20,6],[4,1,5,1],[6,3,6,6],[7,3,7,6],[8,3,8,6],[9,3,9,6],[4,3,5,6],[47,3,47,6],[35,3,35,5],[36,3,36,5],[37,3,37,5],[11,3,11,6],[12,3,12,6],[13,3,13,6],[14,3,14,6],[15,3,15,6],[16,3,16,6],[17,3,17,6],[29,3,29,5],[30,3,30,5],[31,3,31,5],[32,3,32,5],[33,3,33,5],[44,1,45,1],[44,2,45,2],[44,3,45,6],[44,7,45,7],[46,3,46,6],[59,3,59,6],[48,3,48,6],[49,3,49,6],[50,3,50,6],[51,3,51,6],[52,3,52,6],[53,3,53,6],[54,3,54,6],[55,3,55,6],[56,3,56,6],[57,3,57,6],[58,3,58,6],[60,3,60,6],[61,3,61,6],[62,1,63,1],[62,2,63,2],[62,3,63,5],[62,6,63,6],[74,3,74,5],[62,7,63,7],[64,3,64,5],[65,3,65,5],[66,3,66,5],[67,3,67,5],[68,3,68,5],[69,3,69,5],[70,3,70,5],[71,3,71,5],[72,3,72,5],[73,3,73,5],[75,3,75,5],[76,3,76,5],[77,3,77,5],[78,3,78,5],[79,3,79,5]]}
[null,"Projekt IP 2021"]
[null,"Formulář č. 3 - Cíle a výstupy (opt. rozpočet)"]
[]
[]
[null,"Cíle:","č.:","Uveďte reálné, konkrétní a termínované cíle, kterých má být dosaženo.",null,null,null,"Termín:"]
[]
[null,null,"1."]
[null,null,"2."]
[null,null,"3."]
[null,null,"4."]
[null,null,"5."]
[null,null,"6."]
[null,null,"7."]
[null,null,"8."]
[null,null,"9."]
[null,null,"10."]
[null,null,"11."]
[null,null,"12."]
[null,null,"13."]
[null,null,"14."]
[null,null,"15."]
[null,null,"16."]
[null,"   Kontrolovatelné výstupy:","č.:","Definujte konkrétní a měřitelné výstupy, které budou výsledkem projektu",null,null,"Cíl:","Termín:"]
[]
[null,null,"1."]
[null,null,"2."]
[null,null,"3."]
[null,null,"4."]
[null,null,"5."]
[null,null,"6."]
[null,null,"7."]
[null,null,"8."]
[null,null,"9."]
[null,null,"10."]
[null,null,"11."]
[null,null,"12."]
[null,null,"13."]
[null,null,"14."]
[null,null,"15."]
[null,null,"16."]
[]
[null,"Formulář č. 3 - Cíle a výstupy (redukované pro min. rozpočet)"]
[]
[]
[null,"Cíle:","č.:","Uveďte reálné, konkrétní a termínované cíle, kterých má být dosaženo.",null,null,null,"Termín:"]
[]
[null,null,"1."]
[null,null,"2."]
[null,null,"3."]
[null,null,"4."]
[null,null,"5."]
[null,null,"6."]
[null,null,"7."]
[null,null,"8."]
[null,null,"9."]
[null,null,"10."]
[null,null,"11."]
[null,null,"12."]
[null,null,"13."]
[null,null,"14."]
[null,null,"15."]
[null,null,"16."]
[null,"   Kontrolovatelné výstupy:","č.:","Definujte konkrétní a měřitelné výstupy, které budou výsledkem projektu",null,null,"Cíl:","Termín:"]
[]
[null,null,"1."]
[null,null,"2."]
[null,null,"3."]
[null,null,"4."]
[null,null,"5."]
[null,null,"6."]
[null,null,"7."]
[null,null,"8."]
[null,null,"9."]
[null,null,"10."]
[null,null,"11."]
[null,null,"12."]
[null,null,"13."]
[null,null,"14."]
[null,null,"15."]
[null,null,"16."]

{"sheet":"Řešitelský tým","index":3,"n_rows":22,"n_cols":5,"rows_kept":22,"cut":false,"hidden":false,"merged":[[19,4,19,6],[20,4,20,6],[21,4,21,6],[13,4,13,6],[14,4,14,6],[15,4,15,6],[16,4,16,6],[17,4,17,6],[18,4,18,6],[11,4,11,6],[12,4,12,6],[5,4,5,6],[6,4,6,6],[7,4,7,6],[8,4,8,6],[9,4,9,6],[10,4,10,6]]}
[null,"Projekt IP 2021"]
[null,"Formulář č. 3 - Řešitelský tým"]
[]
[]
[]
[null,"V roce 2021:","č.:","Jména osob v projektu:","Pozice a hlavní činnosti v projektu:"]
[null,null,"1."]
[null,null,"2."]
[null,null,"3."]
[null,null,"4."]
[null,null,"5."]
[null,null,"6."]
[null,null,"7."]
[null,null,"8."]
[null,null,"9."]
[null,null,"10."]
[null,null,"11."]
[null,null,"12."]
[null,null,"13."]
[null,null,"14."]
[null,null,"15."]
[null,null,"16."]

{"sheet":"Indikátory, udržitelnost a ZZ","index":4,"n_rows":32,"n_cols":6,"rows_kept":32,"cut":false,"hidden":false,"merged":[[13,1,13,2],[4,1,4,2],[5,1,5,2],[7,1,7,2],[8,1,8,2],[6,1,6,2],[31,3,31,6],[25,1,25,2],[25,3,25,6],[28,1,28,2],[28,3,28,6],[14,1,14,2],[15,1,15,2],[16,1,16,2],[17,1,17,2],[31,1,31,2]]}
[null,"Projekt IP 2021"]
[null,"Formulář č. 3 - Indikátory"]
[null,"Rozpočet opt."]
[]
[null,"Název indikátoru:",null,"Hodnota při zahájení v r. 2021:","Cílová hodnota pro r. 2021:","Plnění 2021 v %:"]
[]
[]
[]
[]
[]
[]
[null,"Rozpočet redukovaný (min.)"]
[]
[null,"Název indikátoru:",null,"Hodnota při zahájení v r. 2021:","Cílová hodnota pro r. 2021:","Plnění 2021 v %:"]
[]
[]
[]
[]
[]
[]
[]
[null,"Formulář č. 3 - Prezentace výsledků, přehled dosavadních IP projektů a udržitelnost projektu"]
[]
[]
[]
[null,"Prezentace a využití výsledků projektu (jako povinné minimum je určeno zveřejnění výstupů projektu na www stránce https://www.fbmi.cvut.cz/ip , bez tohoto zveřejnění není možné uznat projekt za splněný)"]
[]
[]
[null,"Přehled dosavadních IP projektů řešitele za poslední 2 roky, tj. 2019 a 2020 (název, částka a odkaz na www stránky výstupů)"]
[]
[]
[null,"Přehled o udržitelnosti výstupů projektu po realizaci v r. 2021, tj. v roce 2022 až 2023:"]

{"sheet":"Rozpočet 1 opt. rozpis","index":5,"n_rows":21,"n_cols":6,"rows_kept":21,"cut":false,"hidden":false,"merged":[[8,2,8,4],[3,2,3,4],[0,1,0,2]]}
[null,"Projekt IP 2021"]
[null,"Formulář č. 3 - Rozpočet - 1 (opt.)"]
[]
[null,1,"Investiční (kapitálové) finanční prostředky:"]
[null,null,null,"Požadavek dotace z IP (tis.Kč):","Přidělená dotace na IP z MŠMT (tis.Kč):"]
[null,"1.1","Dlouhodobý nehmotný majetek (SW, licence):",0]
[null,"1.2","Samostatné věci movité (stroje, zařízení):",0,0]
[null,null,"Celkem:",{"$f":"D6+D7","v":0},{"$f":"E6+E7","v":0}]
[null,2,"Neinvestiční (běžné) finanční prostředky celkem"]
[null,null,"Osobní náklady:","Požadavek dotace z IP (tis.Kč):","Přidělená dotace na IP z MŠMT (tis.Kč):","Spoluúčast katedry mimo IP (tis.Kč):"]
[null,"2.1","Mzdy (včetně pohyblivých složek):",0,0,0]
[null,"2.2","Odměny dle dohod o pracích konaných mimo pracovní poměr:",0,0,0]
[null,"2.3","Odvody pojistného na veřejné zdravotní pojištění a pojistného na sociální zabezpečení a příspěvku na státní politiku zaměstnanosti a příděly do sociálního fondu:",0,0,0]
[null,null,"Celkem:",{"$f":"D11+D12+D13","v":0},{"$f":"E11+E12+E13","v":0},{"$f":"F11+F12+F13","v":0}]
[null,null,"Ostatní:","Požadavek dotace z IP (tis.Kč):","Přidělená dotace na IP z MŠMT (tis.Kč):","Spoluúčast katedry mimo IP (tis.Kč):"]
[null,"2.4","Materiální náklady (včetně drobného majetku):",0,0,0]
[null,"2.5","Služby a náklady nevýrobní povahy:",0,0,0]
[null,"2.6","Cestovní náhrady:",0,0,0]
[null,"2.7","Stipendia:",0,0,0]
[null,null,"Celkem:",{"$f":"D16+D17+D18+D19","v":0},{"$f":"E16+E17+E18+E19","v":0},{"$f":"F16+F17+F18+F19","v":0}]
[null,3,"Celkem běžné a kapitálové finanční prostředky: ",{"$f":"D8+D14+D20","v":0},{"$f":"E8+E14+E20","v":0},{"$f":"F8+F14+F20","v":0}]

{"sheet":"Rozpočet 1 opt. zdůvodnění","index":6,"n_rows":20,"n_cols":6,"rows_kept":20,"cut":false,"hidden":false,"merged":[[4,2,4,3],[0,1,0,2]]}
[null,"Projekt IP 2021"]
[null,"Formulář č. 3 - Rozpočet - 1 (opt., zdůvodnění)"]
[]
[]
[null,null,"Zdůvodnění požadavků v jednotlivých položkách:"]
[null,"Číslo položky:","Název výdaje a jeho zdůvodnění:","Cíl (pořadové číslo):","Výstup:","Částka    (v tis.Kč):"]
[null,"1."]
[null,"2."]
[null,"3."]
[null,"4."]
[null,"5."]
[null,"6."]
[null,"7."]
[null,"8."]
[null,"9."]
[null,"10."]
[null,"11."]
[null,"12."]
[null,"13."]
[null,"14."]

{"sheet":"Rozpočet 2 min. rozpis","index":7,"n_rows":21,"n_cols":6,"rows_kept":21,"cut":false,"hidden":false,"merged":[[0,1,0,2],[3,2,3,4],[8,2,8,4]]}
[null,"Projekt IP 2021"]
[null,"Formulář č. 3 - Rozpočet - 2 (min.)"]
[]
[null,1,"Investiční (kapitálové) finanční prostředky:"]
[null,null,null,"Požadavek dotace z IP (tis.Kč):","Přidělená dotace na IP z MŠMT (tis.Kč):"]
[null,"1.1","Dlouhodobý nehmotný majetek (SW, licence):",null,0]
[null,"1.2","Samostatné věci movité (stroje, zařízení):",0,0]
[null,null,"Celkem:",{"$f":"D6+D7","v":0},{"$f":"E6+E7","v":0}]
[null,2,"Neinvestiční (běžné) finanční prostředky celkem"]
[null,null,"Osobní náklady:","Požadavek dotace z IP (tis.Kč):","Přidělená dotace na IP z MŠMT (tis.Kč):","Spoluúčast katedry mimo IP (tis.Kč):"]
[null,"2.1","Mzdy (včetně pohyblivých složek):",0,0,0]
[null,"2.2","Odměny dle dohod o pracích konaných mimo pracovní poměr:",0,0,0]
[null,"2.3","Odvody pojistného na veřejné zdravotní pojištění a pojistného na sociální zabezpečení a příspěvku na státní politiku zaměstnanosti a příděly do sociálního fondu:",0,0,0]
[null,null,"Celkem:",{"$f":"D11+D12+D13","v":0},{"$f":"E11+E12+E13","v":0},{"$f":"F11+F12+F13","v":0}]
[null,null,"Ostatní:","Požadavek dotace z IP (tis.Kč):","Přidělená dotace na IP z MŠMT (tis.Kč):","Spoluúčast katedry mimo IP (tis.Kč):"]
[null,"2.4","Materiální náklady (včetně drobného majetku):",0,0,0]
[null,"2.5","Služby a náklady nevýrobní povahy:",0,0,0]
[null,"2.6","Cestovní náhrady:",0,0,0]
[null,"2.7","Stipendia:",0,0,0]
[null,null,"Celkem:",{"$f":"D16+D17+D18+D19","v":0},{"$f":"E16+E17+E18+E19","v":0},{"$f":"F16+F17+F18+F19","v":0}]
[null,3,"Celkem běžné a kapitálové finanční prostředky: ",{"$f":"D8+D14+D20","v":0},{"$f":"E8+E14+E20","v":0},{"$f":"F8+F14+F20","v":0}]

{"sheet":"Rozpočet 2 min. zdůvodnění","index":8,"n_rows":20,"n_cols":6,"rows_kept":20,"cut":false,"hidden":false,"merged":[[0,1,0,2],[4,2,4,3]]}
[null,"Projekt IP 2021"]
[null,"Formulář č. 3 - Rozpočet - 2 (omin., zdůvodnění)"]
[]
[]
[null,null,"Zdůvodnění požadavků v jednotlivých položkách:"]
[null,"Číslo položky:","Název výdaje a jeho zdůvodnění:","Cíl (pořadové číslo):","Výstup:","Částka    (v tis.Kč):"]
[null,"1."]
[null,"2."]
[null,"3."]
[null,"4."]
[null,"5."]
[null,"6."]
[null,"7."]
[null,"8."]
[null,"9."]
[null,"10."]
[null,"11."]
[null,"12."]
[null,"13."]
[null,"14."]

{"sheet":"Čerpání rozpočtu pro ZZ","index":9,"n_rows":21,"n_cols":7,"rows_kept":21,"cut":false,"hidden":false,"merged":[[3,2,3,5],[8,2,8,5],[0,1,0,2]]}
[null,"Projekt IP 2021"]
[null,"Formulář č. 3 - Rozpočet (čerpání pro ZZ)",null,null," "]
[]
[null,1,"Kapitálové finanční prostředky:"]
[null,null,null,"Požadavek dotace z IP (tis.Kč):","Přidělená dotace na IP z MŠMT (tis.Kč):","Čerpání přidělené dotace (tis. Kč):"]
[null,"1.1","Dlouhodobý nehmotný majetek (SW, licence):",0,0,0]
[null,"1.2","Samostatné věci movité (stroje, zařízení):",0,0,0]
[null,null,"Celkem:",{"$f":"D6+D7","v":0},{"$f":"E6+E7","v":0},{"$f":"F6+F7","v":0}]
[null,2,"Běžné finanční prostředky celkem"]
[null,null,"Osobní náklady:","Požadavek dotace z IP (tis.Kč):","Přidělená dotace na IP z MŠMT (tis.Kč):","Čerpání přidělené dotace (tis. Kč):","Čerpání spoluúčasti katedry (tis. Kč):"]
[null,"2.1","Mzdy (včetně pohyblivých složek):",0,0,0,0]
[null,"2.2","Odměny dle dohod o pracích konaných mimo pracovní poměr:",0,0,0,0]
[null,"2.3","Odvody pojistného na veřejné zdravotní pojištění a pojistného na sociální zabezpečení a příspěvku na státní politiku zaměstnanosti a příděly do sociálního fondu:",0,0,0,0]
[null,null,"Celkem:",{"$f":"D11+D12+D13","v":0},{"$f":"E11+E12+E13","v":0},{"$f":"F11+F12+F13","v":0},{"$f":"G11+G12+G13","v":0}]
[null,null,"Ostatní:","Požadavek dotace z IP (tis.Kč):","Přidělená dotace na IP z MŠMT (tis.Kč):","Čerpání přidělené dotace (tis. Kč):","Čerpání spoluúčasti katedry (tis. Kč):"]
[null,"2.4","Materiální náklady (včetně drobného majetku):",0,0,0,0]
[null,"2.5","Služby a náklady nevýrobní:",0,0,0,0]
[null,"2.6","Cestovní náhrady:",0,0,0,0]
[null,"2.7","Stipendia:",0,0,0,0]
[null,null,"Celkem:",{"$f":"D16+D17+D18+D19","v":0},{"$f":"E16+E17+E18+E19","v":0},{"$f":"F16+F17+F18+F19","v":0},{"$f":"G16+G17+G18+G19","v":0}]
[null,3,"Celkem běžné a kapitálové finanční prostředky: ",{"$f":"D8+D14+D20","v":0},{"$f":"E8+E14+E20","v":0},{"$f":"F8+F14+F20","v":0},{"$f":"G8+G14+G20","v":0}]

{"sheet":"Přehled nákupu pro ZZ","index":10,"n_rows":22,"n_cols":12,"rows_kept":22,"cut":false,"hidden":false,"merged":[[0,0,0,1]]}
["Projekt IP 2021"]
["Přehled nákupu investičních položek (HW, SW) v roce 2021 s příspěvkem MŠMT na realizaci Institucionálního plánu ČVUT 2021 (IPL) - položky nad 40 tis. Kč vč. DPH (SW - nad 60 tis. Kč vč. DPH)"]
["Typ akce: ",null,"Akce:"]
[null,"Název položky","Dodavatel","Sml. cena bez DPH","Sml. cena s DPH","Typ zadávacího řízení","ID na profilu zadavatele","číslo dokladu ve IFIS","číslo likvidačního listu v IFIS","Úhrada z IP","Úhrada z FRIM","Inventární číslo položky"]
["1."]
["2."]
["3."]
["4."]
["5."]
["6."]
["7."]
["8."]
["9."]
["10."]
["11."]
["12."]
["13."]
["14."]
["15."]
["16."]
["17."]
["18."]

{"sheet":"Form. č. 4 Hodnocení přihlášky","index":11,"n_rows":26,"n_cols":4,"rows_kept":26,"cut":false,"hidden":false,"merged":[[25,1,25,3],[2,0,2,3],[19,0,20,0],[19,1,20,1],[19,2,20,2],[19,3,20,3],[24,1,24,3]]}
["Projekt IP 2021"]
["Formulář č. 4 - Hodnocení přihlášky projektu hodnotitelem"]
["(u většiny textových položek jsou k dispozici rozevírací seznamy pro výběr položek, u položek řešitel, název projektu, číslo EZOP a číslo iFIS dochází k automatickému kopírování z listu Identifikace)"]
["Řešitel:"]
["Název projektu:",{"$f":"Identifikace!C9","v":0}]
["Číslo projektu EZOP:",{"$f":"Identifikace!C19","v":0}]
["Číslo akce iFIS:",{"$f":"Identifikace!C20","v":0}]
["Katedra (pracoviště) FBMI:"]
["Jméno a tituly hodnotitele:"]
["Pracoviště hodnotitele:"]
["Adresa pracoviště hodn.:"]
["E-mailová adresa hodn.:"]
["Datum:"]
[]
["Kritérium","Popis kritéria","Rozsah bodů","Hodnocení"]
["A","Naplnění formálních požadavků (v případě nedostatků max. 2 body a musí být napraveno, při bezchybném a včasném splnění 5 bodů)","0 - 5",0]
["B","Multiplikativní efekt z hlediska TO u daného projektového cíle (B, TO B1), tj. pro jeden předmět (5 bodů, v případě zahrnutí verze v KFS či v AJ 10 bodů), pro jeden studijní program (více předmětů, 15 bodů, v případě zahrnutí verze v KFS či v AJ 20 bodů), pro více studijních programů/oborů (min. dva studijní programy/obory či jejich kombinace 25 bodů, v případě zahrnutí verze v KFS či v AJ 30 bodů). Toto vše platí pro P předměty, resp. pro kombinaci P a PV. Samostatné PV či V předměty se nepřipouští. ","5 – 30",0]
["C","Míra inovace a využití výstupů ve  výuce – spíše jednoúčelové řešení (možnost pouze jedné specifické úlohy) a míra inovace nízká (10 bodů),  řešení pro několik úloh, ale bez možnosti navrhnout další a míra inovace vyšší (20 bodů) a generické řešení pro více úloh v daném předmětu či laboratoři, či dalším předmětu nebo laboratoři a velmi významná inovace  (30 bodů). ","10 – 30",0]
["D","Specifikace konkrétního a reálného způsobu, jakým bude zajištěna udržitelnost jeho výsledků v letech 2022-2023 a kdo uhradí s tím související náklady (5 bodů za pouze částečné a obecné údaje, 10 bodů za kompletní a konkrétní údaje).","0 - 10",0]
["E","Konkrétnost a reálnost stanovených cílů a výstupů řešení projektu (max. 5 bodů). Doložitelnost dosažení definovaných výstupů řešení při závěrečném oponentním řízení. (max. 10 bodů)","0 - 15",0]
[]
["F","Hodnocení doložení předchozích řešených projektů za poslední 2 roky (5 bodů za žádné reference (uvedená oblast nebyla dlouhodobě řešena a je třeba k tomu přihlédnout), 0 bodů za kompletně dostupné reference a -5 bodů za nedoložení evidovaných řešených projektů v předchozím období na základě seznamu řešených projektů v daném sledovaném období)","-5,0,5",0]
["G","Zhodnocení spoluúčasti katedry (do 10 % z NEI – 2 body, do 20 % z NEI – 5 bodů)","0 - 5",0]
["Hodnocení","Bodů celkem (max. 100)",null,{"$f":"SUM(D16:D23)","v":0}]
["Celkový výsledek hodnocení"]
["Doporučení k dopracování"]

{"sheet":"Form. č. 5 Hodnocení ZZ","index":12,"n_rows":30,"n_cols":2,"rows_kept":30,"cut":false,"hidden":false,"merged":[[24,1,27,12],[29,1,29,12],[20,1,20,12],[14,1,14,12],[16,1,16,12],[17,1,17,12],[18,1,18,12],[2,0,2,12],[11,1,11,12],[12,1,12,12],[22,1,22,12],[3,1,3,12],[4,1,4,12],[5,1,5,12],[6,1,6,12],[7,1,7,12],[8,1,8,12],[9,1,9,12],[10,1,10,12]]}
["Projekt IP 2021"]
["Formulář č. 5 - Hodnocení závěrečné zprávy projektu"]
["(u většiny textových položek jsou k dispozici rozevírací seznamy pro výběr položek, u položek řešitel, název projektu, číslo EZOP a číslo iFIS dochází k automatickému kopírování z listu Identifikace)"]
["Řešitel:",{"$f":"Identifikace!C7","v":0}]
["Název projektu:",{"$f":"Identifikace!C9","v":0}]
["Číslo projektu EZOP:",{"$f":"Identifikace!C19","v":0}]
["Číslo akce iFIS:",{"$f":"Identifikace!C20","v":0}]
["Katedra (pracoviště řešitele) FBMI:"]
["Jméno a tituly hodnotitele:"]
["Pracoviště hodnotitele:"]
["Adresa pracoviště hodn.:"]
["E-mailová adresa hodn.:"]
["Datum:"]
[]
["Splnění cílů a indikátorů"]
[]
["Výstupy a jejich využití:"]
["zveřejnění na povinné www stránce"]
["udržitelnost výstupů (2022-2023)"]
[]
["Hospodaření s přidělenými finančními prostředky:"]
[]
["Provedené nezbytných změn bylo schváleno:"]
[]
["Celkový komentář:"]
[]
[]
[]
[]
["Celkový výsledek projektu:"]

{"sheet":"Form. č. 6 Změna projektu","index":13,"n_rows":28,"n_cols":2,"rows_kept":28,"cut":false,"hidden":false,"merged":[[7,1,7,12],[20,1,20,12],[22,1,25,12],[27,1,27,12],[8,1,8,12],[10,1,10,12],[12,1,18,12],[2,0,2,12],[3,1,3,12],[4,1,4,12],[5,1,5,12],[6,1,6,12]]}
["Projekt IP 2021"]
["Formulář č. 6 - Změna projektu"]
["(u většiny textových položek jsou k dispozici rozevírací seznamy pro výběr položek, u položek řešitel, název projektu, číslo EZOP a číslo iFIS dochází k automatickému kopírování z listu Identifikace)"]
["Řešitel:",{"$f":"Identifikace!C7","v":0}]
["Název projektu:",{"$f":"Identifikace!C9","v":0}]
["Číslo projektu EZOP:",{"$f":"Identifikace!C19","v":0}]
["Číslo akce iFIS:",{"$f":"Identifikace!C20","v":0}]
["Katedra (pracoviště) FBMI:"]
["Datum žádosti:"]
[]
["Druh změny:"]
[]
["Zdůvodnění:"]
[]
[]
[]
[]
[]
[]
[]
["Schválení či zamítnutí změny:"]
[]
["Komentář, popř. při zamítnutí zdůvodnění:"]
[]
[]
[]
[]
["Datum rozhodnutí děkana:"]

{"sheet":"Form. č. 7 Kontrola čerpání","index":14,"n_rows":55,"n_cols":2,"rows_kept":55,"cut":false,"hidden":false,"merged":[[49,1,52,12],[7,1,7,12],[8,1,8,12],[9,1,9,12],[10,1,10,12],[42,1,45,12],[11,1,11,12],[14,1,17,12],[19,1,22,12],[24,1,27,12],[32,1,35,12],[37,1,40,12],[2,0,2,12],[3,1,3,12],[4,1,4,12],[5,1,5,12],[6,1,6,12]]}
["Projekt IP 2021"]
["Formulář č. 7 - Kontrola čerpání (hodnotitelem + referentkou OR na základě podkladů z finanční účtárny a katedry)"]
["(u většiny textových položek jsou k dispozici rozevírací seznamy pro výběr položek, u položek řešitel, název projektu, číslo EZOP a číslo iFIS dochází k automatickému kopírování z listu Identifikace)"]
["Řešitel:",{"$f":"Identifikace!C7","v":0}]
["Název projektu:",{"$f":"Identifikace!C9","v":0}]
["Číslo projektu EZOP:",{"$f":"Identifikace!C19","v":0}]
["Číslo akce iFIS:",{"$f":"Identifikace!C20","v":0}]
["Katedra (pracoviště) FBMI:"]
["Jméno a tituly hodnotitele:"]
["Pracoviště hodnotitele:"]
["Adresa pracoviště hodn.:"]
["E-mailová adresa hodn.:"]
[]
["Kontrola čerpání č. 1 do 30.06.2021 (40 %)"]
["Stav v účetnictví (iFIS)"]
[]
[]
[]
[]
["Stav na katedře, vyjádření řešitele projektu"]
[]
[]
[]
[]
["Výsledek kontroly čerpání č. 1"]
[]
[]
[]
[]
["Datum:"]
[]
["Kontrola čerpání č. 2 do 30.10.2021 (90 %)"]
["Stav v účetnictví (iFIS)"]
[]
[]
[]
[]
["Stav na katedře, vyjádření řešitele projektu"]
[]
[]
[]
[]
["Výsledek kontroly čerpání č. 2"]
[]
[]
[]
[]
["Datum:"]
[]
["Celkový výsledek kontroly čerpání projektu"]
[]
[]
[]
[]
["Datum:"]

{"sheet":"Data_RS_admin","index":15,"n_rows":98,"n_cols":1,"rows_kept":98,"cut":false,"hidden":false,"merged":[]}
["Katedra přírodovědných oborů (KPO, 17101)"]
["Katedra biomedicínské techniky (KBT, 17110)"]
["Katedra zdravotnických oborů a ochrany obyvatelstva (KZOOO, 17111)"]
["Katedra biomedicínské informatiky (KBI, 17112)"]
["Katedra informačních a komunikačních technologií v lékařství (KIT, 17120)"]
[]
["ČVUT FBMI, Nám. Sítná 3105, 272 01 Kladno"]
["ČVUT FBMI, Sportovců 2311, 272 01 Kladno"]
[]
["doc. Ing. Jiří Hozman, Ph.D."]
["prof. MUDr. Leoš Navrátil, CSc."]
["Ing. Martin Otáhal, Ph.D."]
["Ing. Pavel Smrčka, Ph.D."]
["doc. Ing. Zoltán Szabó, Ph.D."]
[]
["hozman@fbmi.cvut.cz"]
["leos.navratil@fbmi.cvut.cz"]
["martin.otahal@fbmi.cvut.cz"]
["smrcka@fbmi.cvut.cz"]
["szabo@fbmi.cvut.cz"]
[]
["doporučení projektu bez změny"]
["doporučení projektu s redukcí rozpočtu – viz minimalistický rozpočet"]
["doporučení projektu s výhradami k věcné náplni (nutné dopracovat), viz doporučení níže "]
["nedoporučení projektu z důvodu nenaplnění věcné náplně vyhlášené soutěže "]
[]
["2021-01-22"]
["2021-01-23"]
["2021-01-24"]
["2021-01-25"]
["2021-01-26"]
["2021-01-27"]
["2021-01-28"]
["2021-01-29"]
[]
["Schválení změny (komentář, viz text níže)"]
["Schválení změny s omezením (komentář a zdůvodnění, viz text níže)"]
["Zamítnutí změny (zdůvodnění, viz text níže)"]
[]
["Změna řešitele či spoluřešitele"]
["Změna poměru NEI a INV v rozpočtu"]
["Změna cílů, výstupů a indikátorů"]
["Změna řešitele či spoluřešitele a změna poměru NEI a INV v rozpočtu"]
["Změna poměru NEI a INV v rozpočtu, změna cílů, výstupů a indikátorů"]
["Změna řešitele či spoluřešitele, změna cílů, výstupů a indikátorů"]
[]
["projekt splněn"]
["projekt splněn s věcnou výhradou, viz komentář výše"]
["projekt splněn s výhradou k hospodaření s přidělenou dotací, viz komentář výše"]
["projekt nesplněn, viz komentář výše"]
[]
["splněny dle projektu"]
["nesplněny dle projektu, viz komnetář níže"]
[]
["dle projektu"]
["neodpovídá projektu, viz komentář níže"]
[]
["ano, viz formulář č. 6"]
["ne, viz formulář č. 6"]
[]
["splněno dle vyhlášení"]
["nesplněno dle vyhlášení"]
[]
["splněna dle vyhlášení"]
["nesplněna dle vyhlášení"]
[]
["KPO/17101"]
["KBT/17110"]
["KZOOO/17111"]
["KBI/17112"]
["KIT/17120"]
[]
[]
[]
[]
["A) podpora a modernizace distančních forem vzdělávání na jednotlivých fakultách/ součástech"]
["B) nastavení interních procesů a mechanismů realizace vnitřní soutěže na celoškolské úrovni ČVUT pro roky 2022+"]
[]
["TO A1) potřebné dovybavení pro zajištění distanční výuky (dataprojektory, kamery, ozvučení, kompletní vybavení místnosti atd.)"]
["TO A2) nákup přístrojů pro distanční výuku, které je možné online připojit "]
["TO A3) dovybavení/ vytvoření softwarových aplikací pro zlepšení bezkontaktní výuky "]
["TO A4) nákup licencí, softwarových aplikací "]
["TO A5) osobní náklady související se zajištěním systémové podpory distančních forem vzdělávání nad rámec pracovní náplně (dálková výuka, dálkové zkoušení studentů, testování/ vývoj nových a rozšíření stávajících funkcionalit, testování komunikace se studenty) "]
["TO A6) sdílení/ archivace a digitalizace dokumentů a studijních materiálů (např. 3D modelů)"]
["TO A7) proškolení v rámci nových softwarových aplikací a funkcionalit"]
["TO B1) Pedagogické práce akademických pracovníků a tvůrčí práce studentů směřující k inovaci ve vzdělání a zároveň k získání poznatků nutných pro dosahování prioritních cílů IP ČVUT pro rok 2021"]
["TO B2) Realizace výzkumů, analýz a dalších tvůrčích činností, příjemcem jejichž výsledků je \tČVUT a které jsou nutné k dosažení prioritních cílů Institucionálního plánu ČVUT pro rok 2021"]
[]
[]
["DA B1a) tvorba nového předmětu nově akreditovaných studijních programů"]
["DA B1b) tvorba studijních pomůcek (HW, SW, případových studií apod.), rozpracování nových typových příkladů, týmových projektů, studijních opor, či učebnic"]
["DA B1c) podpora tvorby studijních materiálů multimediálního charakteru přístupných  prostřednictvím internetu studentům a akademickým pracovníkům VŠ v ČR"]
["DA B1d) inovace předmětů cestou zavádění nových metod a technologií výuky"]
["DA B1e) vytvoření nových výukových metodik a postupů, včetně pořízení učebních pomůcek neinvestiční či investiční povahy"]
["DA B1f) jiné přínosné vzdělávací a organizační pedagogické aktivity"]
["DA B2a) návrhy na přizpůsobení vybraných částí IS ČVUT pro realizaci soutěže v podmínkách fakulty (jedná se o bezprostřední spolupráci fakulty a R ČVUT)"]
["DA B2b) studie proveditelnosti vybraných řešení v rámci IP ČVUT počínaje rokem 2022 (jedná se pouze o projekty fakultního rozsahu)"]
["DA B2c) průzkum a analýza hodnoticích kritérií jednotlivých druhů dílčích aktivit v rámci TO"]